fUST/lending_fUST_20251020
["ID","MTS","AMOUNT","RATE_DAILY","PERIOD"]
[391855030,1760917839693,-796.19226871,0.00032331,2]
[391855031,1760917839703,-441.09,0.00032357,15]
[391855032,1760917839712,-441.09,0.00032457,15]
[391855033,1760917839721,-441.09,0.00032557,15]
[391855034,1760917839730,-441.09,0.00032657,15]
[391855035,1760917839740,-403.36552815,0.00032705,2]
[391855036,1760917839750,-441.09,0.00032757,15]
[391855037,1760917839761,-441.09,0.00032857,15]
[391855038,1760917839770,-156.47341531,0.00032873,5]
[391855039,1760917839780,-633.03254495,0.00032873,5]
[391855040,1760917839790,-303.93496813,0.00032873,5]
[391855041,1760917839800,-825.65138265,0.00032879,2]
[391855042,1760917839810,-50383.9928514,0.0003289,2]
[391855043,1760917839820,-316.3734587,0.000329,120]
[391855044,1760917839829,-287.62645837,0.000329,120]
[391855045,1760917839839,-171.72962963,0.000329,120]
[391855046,1760917839848,-2416.27834971,0.000329,120]
[391855047,1760917839859,-1446.80158163,0.000329,120]
[391855048,1760917839868,-634.10597762,0.000329,120]
[391855049,1760917839879,-2727.73896581,0.000329,120]
[391855050,1760917839889,-441.09,0.00032957,60]
[391855051,1760917839900,-614.809391,0.0003299,2]
[391855052,1760917839909,-1344.55,0.00033011,2]
[391855054,1760917839918,-500.0,0.00033025,7]
[391855055,1760917839927,-500.0,0.00033057,7]
[391855056,1760917839937,-441.09,0.00033057,60]
[391855057,1760917839946,-441.09,0.00033157,60]
[391855058,1760917839959,-441.09,0.00033257,60]
[391855059,1760917839969,-441.09,0.00033357,60]
[391855060,1760917839978,-500.0,0.00033359,7]
[391855061,1760917839987,-160.0,0.00033424,3]
[391855062,1760917839996,-441.09,0.00033457,60]
[391855063,1760917840005,-380.0,0.000335,2]
[391855064,1760917840014,-441.09,0.00033557,60]
[391855065,1760917840023,-500.0,0.00033588,7]
[391855066,1760917840032,-9207.49604753,0.00033599,2]
[391855067,1760917840041,-441.09,0.00033657,60]
[391855068,1760917840050,-175.0,0.00033665,7]
[391855069,1760917840059,-152.0,0.00033665,7]
[391855070,1760917840068,-205.80011743,0.00033665,7]
[391855071,1760917840077,-163.0,0.00033665,7]
[391855072,1760917840086,-163.49587639,0.00033665,7]
[391855074,1760917840095,-200.63264686,0.00033673,5]
[391855076,1760917840104,-251919.964257,0.00033689,2]
[391855078,1760917840113,-370000.0,0.00033699,2]
[391855080,1760917840122,-2326.05,0.000337,14]
[391855081,1760917840131,-2161.0,0.00033751,2]
[391855082,1760917840140,-150.0,0.00033751,2]
[391855083,1760917840149,-441.09,0.00033757,60]
[391855084,1760917840158,-379.0,0.000338,2]
[391855085,1760917840167,-441.09,0.00033857,60]
[391855086,1760917840176,-500.0,0.00033859,7]
[391855087,1760917840185,-287.62645837,0.000339,120]
[391855088,1760917840194,-316.3734587,0.000339,120]
[391855089,1760917840203,-2416.27834971,0.000339,120]
[391855090,1760917840213,-1446.80158163,0.000339,120]
[391855091,1760917840222,-634.10597762,0.000339,120]
[391855092,1760917840231,-2727.73896581,0.000339,120]
[391855093,1760917840240,-441.09,0.00033957,60]
[391855094,1760917840249,-949.58,0.00034,2]
[391855095,1760917840258,-21587.0396048,0.00034001,2]
[391855096,1760917840268,-991.9182963,0.00034001,2]
[391855097,1760917840277,-403.36552815,0.00034041,2]
[391855098,1760917840287,-151.0,0.00034044,30]
[391855099,1760917840296,-238.495112,0.00034044,30]
[391855100,1760917840305,-158.12604,0.00034044,30]
[391855101,1760917840314,-151.0,0.00034044,30]
[391855102,1760917840323,-275.681012,0.00034044,7]
[391855103,1760917840333,-151.0,0.00034044,30]
[391855104,1760917840342,-1062.501485,0.00034044,30]
[391855105,1760917840352,-154.651729,0.00034044,30]
[391855106,1760917840363,-1062.501485,0.00034044,30]
[391855107,1760917840374,-1062.501485,0.00034044,30]
[391855108,1760917840384,-1062.501485,0.00034044,30]
[391855109,1760917840393,-151.0,0.00034044,30]
[391855110,1760917840404,-151.0,0.00034044,30]
[391855111,1760917840413,-151.0,0.00034044,30]
[391855112,1760917840423,-151.0,0.00034044,30]
[391855113,1760917840433,-151.0,0.00034044,30]
[391855114,1760917840445,-151.0,0.00034044,30]
[391855115,1760917840454,-151.0,0.00034044,30]
[391855116,1760917840464,-491.802964,0.00034044,30]
[391855117,1760917840474,-491.802964,0.00034044,30]
[391855118,1760917840484,-491.802964,0.00034044,30]
[391855119,1760917840494,-151.0,0.00034044,30]
[391855120,1760917840503,-491.802964,0.00034044,30]
[391855121,1760917840513,-151.0,0.00034044,30]
[391855122,1760917840523,-151.0,0.00034044,2]
[391855123,1760917840533,-151.0,0.00034044,30]
[391855124,1760917840544,-151.0,0.00034044,30]
[391855125,1760917840614,-151.0,0.00034044,30]
[391855126,1760917840623,-153.572685,0.00034044,30]
[391855127,1760917840634,-151.0,0.00034044,30]
[391855128,1760917840643,-151.0,0.00034044,30]
[391855129,1760917840652,-151.0,0.00034044,30]
[391855130,1760917840661,-151.0,0.00034044,30]
[391855131,1760917840670,-151.0,0.00034044,2]
[391855132,1760917840680,-151.0,0.00034044,30]
[391855133,1760917840689,-151.0,0.00034044,30]
[391855134,1760917840699,-483.385855,0.00034044,30]
[391855135,1760917840708,-483.385855,0.00034044,30]
[391855136,1760917840717,-483.385855,0.00034044,30]
[391855137,1760917840726,-483.385855,0.00034044,30]
[391855138,1760917840735,-151.0,0.00034044,30]
[391855139,1760917840744,-151.0,0.00034044,30]
[391855140,1760917840755,-151.0,0.00034044,30]
[391855141,1760917840764,-154.896608,0.00034044,15]
[391855142,1760917840775,-151.0,0.00034044,30]
[391855143,1760917840784,-151.0,0.00034044,30]
[391855144,1760917840794,-151.0,0.00034044,30]
[391855145,1760917840803,-344.073576,0.00034044,30]
[391855146,1760917840812,-344.073576,0.00034044,30]
[391855147,1760917840822,-344.073576,0.00034044,30]
[391855148,1760917840833,-344.073576,0.00034044,30]
[391855149,1760917840843,-151.0,0.00034044,30]
[391855150,1760917840853,-10000.0,0.00034044,2]
[391855151,1760917840863,-10000.0,0.00034044,2]
[391855152,1760917840875,-10000.0,0.00034044,2]
[391855153,1760917840885,-10000.0,0.00034044,2]
[391855154,1760917840894,-10000.0,0.00034044,2]
[391855155,1760917840903,-10000.0,0.00034044,2]
[391855156,1760917840912,-10000.0,0.00034044,2]
[391855157,1760917840922,-10000.0,0.00034044,2]
[391855158,1760917840931,-407.0,0.00034044,2]
[391855159,1760917840940,-283988.67589598,0.00034045,20]
[391855160,1760917840959,-949.69501795,0.00034045,20]
[391855161,1760917840971,-1992.2449,0.00034045,20]
[391855162,1760917840985,-7405.54545693,0.00034045,20]
[391855163,1760917840998,-6175.5512217,0.00034045,20]
[391855164,1760917841009,-3391.45952466,0.00034045,20]
[391855165,1760917841198,-330.0,0.00030856,7]
[391855166,1760917841208,-51266.38208286,0.00034045,20]
[391855167,1760917841218,-50073.02064216,0.00034045,5]
[391855168,1760917841227,-3204.85532341,0.00034045,5]
[391855169,1760917841237,-2326.21178136,0.00034045,2]
[391855170,1760917841246,-266.616689,0.00034045,30]
[391855171,1760917841255,-266.616689,0.00034045,30]
[391855172,1760917841264,-151.0,0.00034045,30]
[391855173,1760917841273,-266.616689,0.00034045,30]
[391855174,1760917841282,-151.0,0.00034045,30]
[391855175,1760917841291,-266.616689,0.00034045,30]
[391855176,1760917841300,-151.0,0.00034045,30]
[391855177,1760917841309,-151.0,0.00034045,30]
[391855178,1760917841318,-151.0,0.00034045,30]
[391855179,1760917841328,-151.0,0.00034045,30]
[391855180,1760917841337,-151.0,0.00034045,30]
[391855181,1760917841346,-151.0,0.00034045,30]
[391855182,1760917841355,-151.0,0.00034045,30]
[391855183,1760917841364,-229.933641,0.00034045,30]
[391855184,1760917841373,-151.0,0.00034045,30]
[391855185,1760917841383,-229.933641,0.00034045,30]
[391855186,1760917841392,-229.933641,0.00034045,30]
[391855187,1760917841401,-229.933641,0.00034045,30]
[391855188,1760917841410,-441.09,0.00034057,60]
[391855189,1760917841419,-502.33263446,0.0003409,7]
[391855190,1760917841428,-250.0,0.000341,14]
[391855191,1760917841437,-250.0,0.000341,14]
[391855192,1760917841451,-250.0,0.000341,14]
[391855193,1760917841460,-23266.72,0.000341,14]
[391855194,1760917841469,-1021.24,0.000341,2]
[391855195,1760917841478,-441.09,0.00034157,60]
[391855196,1760917841487,-5000.0,0.00034168,4]
[391855197,1760917841496,-7000.0,0.00034246,2]
[391855198,1760917841506,-7000.0,0.00034246,2]
[391855199,1760917841516,-7000.0,0.00034246,2]
[391855200,1760917841526,-7000.0,0.00034246,2]
[391855201,1760917841596,-151.0,0.00034246,30]
[391855202,1760917841607,-151.0,0.00034246,30]
[391855203,1760917841617,-151.0,0.00034246,30]
[391855204,1760917841627,-151.0,0.00034246,30]
[391855205,1760917841637,-151.0,0.00034246,30]
[391855206,1760917841646,-151.0,0.00034246,30]
[391855207,1760917841656,-151.0,0.00034246,30]
[391855208,1760917841665,-441.09,0.00034257,60]
[391855209,1760917841674,-402.86590842,0.000343,30]
[391855210,1760917841684,-441.09,0.00034357,60]
[391855211,1760917841694,-1792.73,0.00034446,2]
[391855212,1760917841703,-441.09,0.00034457,60]
[391855213,1760917841712,-229.50758,0.00034548,2]
[391855214,1760917841722,-154.645735,0.00034548,2]
[391855215,1760917841731,-330.0,0.00034555,7]
[391855216,1760917841740,-330.0,0.00034555,7]
[391855217,1760917841750,-330.0,0.00034555,7]
[391855218,1760917841759,-330.0,0.00034555,7]
[391855219,1760917841769,-330.0,0.00034555,7]
[391855220,1760917841779,-330.0,0.00034555,7]
[391855221,1760917841788,-330.0,0.00034555,7]
[391855222,1760917841798,-330.0,0.00034555,7]
[391855223,1760917841808,-330.0,0.00034555,7]
[391855224,1760917841818,-337.18682453,0.00034555,7]
[391855225,1760917841828,-402.86590842,0.00034555,7]
[391855226,1760917841838,-441.11,0.00034557,60]
[391855227,1760917841848,-502.61374463,0.00034645,7]
[391855228,1760917841859,-229.50758,0.00034648,15]
[391855229,1760917841872,-154.645735,0.00034648,15]
[391855230,1760917841885,-229.69,0.00034657,60]
[391855231,1760917841895,-9207.49604753,0.0003475,2]
[391855232,1760917841905,-229.69,0.00034757,60]
[391855233,1760917841914,-1400.0,0.00034849,7]
[391855234,1760917841924,-229.69,0.00034857,60]
[391855235,1760917841934,-316.3734587,0.000349,120]
[391855236,1760917841943,-287.62645837,0.000349,120]
[391855237,1760917841956,-2416.27834971,0.000349,120]
[391855238,1760917841966,-1446.80158163,0.000349,120]
[391855239,1760917841976,-634.10597762,0.000349,120]
[391855240,1760917841986,-2727.73896581,0.000349,120]
[391855241,1760917841996,-229.69,0.00034957,60]
[391855242,1760917842006,-4025.82468415,0.00035,2]
[391855243,1760917842016,-202.78095131,0.00035,2]
[391855244,1760917842026,-402.86590842,0.00035,30]
[391855245,1760917842036,-229.69,0.00035057,60]
[391855246,1760917842045,-2326.05,0.000351,14]
[391855247,1760917842055,-160.0,0.00035143,4]
[391855248,1760917842065,-229.69,0.00035157,60]
[391855249,1760917842074,-1465.774501,0.0003516,120]
[391855250,1760917842084,-150.0,0.00035186,2]
[391855251,1760917842094,-229.69,0.00035257,60]
[391855252,1760917842103,-391.8157127,0.00035261,30]
[391855253,1760917842113,-392.6151505,0.00035293,30]
[391855254,1760917842122,-392.6151505,0.00035293,30]
[391855255,1760917842132,-200.0,0.000353,120]
[391855256,1760917842142,-229.69,0.00035357,60]
[391855257,1760917842152,-154.761602,0.00035366,15]
[391855258,1760917842161,-403.36552815,0.00035377,2]
[391855259,1760917842170,-229.69,0.00035457,60]
[391855260,1760917842179,-23266.72,0.000355,14]
[391855261,1760917842189,-1021.24,0.000355,2]
[391855262,1760917842197,-1062.501485,0.000355,30]
[391855263,1760917842206,-1062.501485,0.000355,30]
[391855264,1760917842215,-1062.501485,0.000355,30]
[391855265,1760917842224,-1062.501485,0.000355,30]
[391855266,1760917842233,-151.0,0.000355,30]
[391855267,1760917842242,-151.0,0.000355,30]
[391855268,1760917842251,-151.0,0.000355,30]
[391855269,1760917842260,-491.802964,0.000355,30]
[391855270,1760917842269,-491.802964,0.000355,30]
[391855271,1760917842278,-491.802964,0.000355,30]
[391855272,1760917842287,-151.0,0.000355,30]
[391855273,1760917842296,-491.802964,0.000355,30]
[391855274,1760917842305,-151.0,0.000355,30]
[391855275,1760917842314,-151.0,0.000355,2]
[391855276,1760917842323,-151.0,0.000355,30]
[391855277,1760917842332,-200.212284,0.000355,30]
[391855278,1760917842341,-151.0,0.000355,30]
[391855279,1760917842350,-151.0,0.000355,30]
[391855280,1760917842359,-151.0,0.000355,30]
[391855281,1760917842369,-192.026111,0.000355,30]
[391855282,1760917842378,-483.385855,0.000355,30]
[391855283,1760917842387,-483.385855,0.000355,30]
[391855284,1760917842396,-483.385855,0.000355,30]
[391855285,1760917842406,-483.385855,0.000355,30]
[391855286,1760917842414,-151.0,0.000355,30]
[391855287,1760917842423,-151.0,0.000355,30]
[391855289,1760917842432,-151.0,0.000355,30]
[391855290,1760917842441,-272.326138,0.000355,30]
[391855292,1760917842450,-344.073576,0.000355,30]
[391855294,1760917842459,-344.073576,0.000355,30]
[391855303,1760917842524,-344.073576,0.000355,30]
[391855306,1760917842534,-344.073576,0.000355,30]
[391855309,1760917842543,-266.616689,0.000355,30]
[391855312,1760917842552,-266.616689,0.000355,30]
[391855316,1760917842561,-151.0,0.000355,30]
[391855319,1760917842570,-266.616689,0.000355,30]
[391855321,1760917842580,-151.0,0.000355,30]
[391855324,1760917842589,-266.616689,0.000355,30]
[391855326,1760917842599,-151.0,0.000355,30]
[391855328,1760917842608,-151.0,0.000355,30]
[391855330,1760917842617,-151.0,0.000355,30]
[391855332,1760917842626,-151.0,0.000355,30]
[391855334,1760917842635,-151.0,0.000355,30]
[391855336,1760917842644,-229.933641,0.000355,30]
[391855338,1760917842653,-229.933641,0.000355,30]
[391855340,1760917842663,-229.933641,0.000355,30]
[391855342,1760917842672,-229.933641,0.000355,30]
[391855344,1760917842682,-229.69,0.00035557,60]
[391855346,1760917842691,-4593.62,0.00035616,120]
[391855348,1760917842701,-229.69,0.00035657,60]
[391855350,1760917842710,-1400.0,0.00035671,7]
[391855352,1760917842719,-152.27241671,0.00035714,10]
[391855353,1760917842728,-152.27241671,0.00035714,10]
[391855354,1760917842738,-229.69,0.00035757,60]
[391855355,1760917842747,-229.69,0.00035857,60]
[391855356,1760917842756,-2240.92,0.00035882,2]
[391855357,1760917842766,-2416.27834971,0.000359,120]
[391855359,1760917842775,-2727.73896581,0.000359,120]
[391855361,1760917842785,-9768.774363,0.000359,2]
[391855363,1760917842794,-9207.49604753,0.000359,2]
[391855365,1760917842803,-154.761602,0.0003591,2]
[391855367,1760917842813,-229.69,0.00035957,60]
[391855369,1760917842822,-220.01086159,0.00035973,5]
[391855371,1760917842832,-21711.99999907,0.00036,120]
[391855373,1760917842841,-104636.04739985,0.00036,5]
[391855380,1760917843122,-330.0,0.00030856,7]
[391855381,1760917843135,-330.0,0.00030856,7]
[391855382,1760917843155,-115.11707929,0.00036,5]
[391855383,1760917843173,-1314.18206333,0.00036,5]
[391855384,1760917843190,-9089.20423168,0.00036,5]
[391855409,1760917846090,-250.0,0.00030751,2]
[391855410,1760917846100,-213.536,0.00030751,2]
[391855411,1760917846110,-7.59585777,0.00033751,2]
[391855412,1760917881279,417.15472785,0.00024073,2]
[391855413,1760917956579,362.62,0.00022458,2]
[391855414,1760917957019,725.24,0.00023527,2]
[391855415,1760918038570,354.32,0.00021165,2]
[391855416,1760918038982,708.65,0.00022172,2]
[391855417,1760918039412,1062.97,0.0002318,2]
[391855418,1760918119018,327.27,0.00022306,2]
[391855419,1760918119465,654.53,0.00023369,2]
[391855422,1760918199311,314.77,0.00020828,2]
[391855423,1760918199784,563.7189549,0.0002182,2]
[391855424,1760918199815,65.8210451,0.0002182,2]
[391855425,1760918200247,944.31,0.00022812,2]
[391855426,1760918200720,1259.08,0.00023804,2]
[391855430,1760918278276,274.71,0.00021947,2]
[391855431,1760918278862,549.42,0.00022992,2]
[391855432,1760918279684,824.13,0.00024037,2]
[391855433,1760918335788,3000.0,0.00034044,60]
[391855434,1760918352201,3000.0,0.00034044,60]
[391855435,1760918358191,253.73,0.00021903,2]
[391855436,1760918358656,507.46,0.00022946,2]
[391855437,1760918359081,761.19,0.00023989,2]
[391855438,1760918361326,3000.0,0.00034044,60]
[391855439,1760918368668,3000.0,0.00034044,60]
[391855440,1760918376376,3000.0,0.00034044,60]
[391855442,1760918387143,3000.0,0.00034044,60]
[391855443,1760918393340,3000.0,0.00034044,60]
[391855444,1760918399259,3000.0,0.00034044,60]
[391855445,1760918411201,618.30294574,0.00034044,60]
[391855446,1760918437712,234.36,0.00020787,2]
[391855447,1760918438124,468.71,0.00021777,2]
[391855448,1760918438576,703.07,0.00022767,2]
[391855449,1760918439074,937.42,0.00023757,2]
[391855452,1760918491973,2216.5989549,0.00024073,2]
[391855453,1760918491999,7783.4010451,0.00024073,2]
[391855454,1760918498255,2216.6089549,0.00024073,2]
[391855455,1760918498281,7783.3910451,0.00024073,2]
[391855456,1760918504116,2216.6189549,0.00024073,2]
[391855457,1760918504154,7783.3810451,0.00024073,2]
[391855458,1760918510695,2216.6289549,0.00024073,2]
[391855459,1760918510720,7783.3710451,0.00024073,2]
[391855460,1760918516533,417.15472785,0.00024073,2]
[391855461,1760918517059,1799.48422705,0.00024073,2]
[391855462,1760918517085,8200.51577295,0.00024073,2]
[391855463,1760918518772,397.71,0.00020785,2]
[391855464,1760918519229,795.42,0.00021774,2]
[391855465,1760918519626,606.36422705,0.00022764,2]
[391855466,1760918519659,586.76577295,0.00022764,2]
[391855467,1760918520076,1590.84,0.00023754,2]
[391855468,1760918523364,7822.40422705,0.00024073,2]
[391855469,1760918523390,2177.59577295,0.00024073,2]
[391855470,1760918530463,7822.41422705,0.00024073,2]
[391855471,1760918530490,2177.58577295,0.00024073,2]
[391855472,1760918538704,10000.0,0.0002401,2]
[391855473,1760918552222,417.15472785,0.00024,3]
[391855474,1760918555481,9135.0,0.00024073,2]
[391855475,1760918599395,384.1,0.00020784,2]
[391855476,1760918599836,63.75527215,0.00021774,2]
[391855477,1760918599934,704.44472785,0.00021774,2]
[391855478,1760918600310,1152.3,0.00022764,2]
[391855479,1760918600803,1536.4,0.00023753,2]
[391855480,1760918679847,335.21,0.00020803,2]
[391855481,1760918680409,670.43,0.00021794,2]
[391855482,1760918680742,1005.64,0.00022785,2]
[391855483,1760918681177,1340.86,0.00023775,2]
[391855498,1760918759620,292.55,0.00020802,2]
[391855499,1760918760053,585.1,0.00021793,2]
[391855500,1760918760607,877.65,0.00022783,2]
[391855501,1760918761078,1170.21,0.00023774,2]
[391855502,1760918804119,-228.29725601,0.000241,2]
[391855503,1760918839116,255.32,0.00020865,2]
[391855504,1760918839561,73.89527215,0.00021859,2]
[391855505,1760918839589,436.73472785,0.00021859,2]
[391855506,1760918840027,765.95,0.00022852,2]
[391855507,1760918840453,1021.27,0.00023846,2]
[391855508,1760918919466,222.82,0.00020851,2]
[391855509,1760918919883,445.65,0.00021844,2]
[391855510,1760918920358,668.47,0.00022837,2]
[391855511,1760918920841,891.29,0.0002383,2]
[391855512,1760918998204,194.46,0.00020828,2]
[391855513,1760918998669,388.93,0.0002182,2]
[391855514,1760918999109,583.39,0.00022812,2]
[391855515,1760918999600,777.85,0.00023804,2]
[391855560,1760919032118,-71.70274399,0.000241,2]
[391855562,1760919032127,-163.21674625,0.000241,2]
[391855563,1760919032137,-500.0,0.000241,2]
[391855566,1760919032147,-150.0,0.000241,2]
[391855568,1760919032156,-200.0,0.000242,2]
[391855570,1760919032166,-175.20421,0.00024207,2]
[391855571,1760919032175,-409.43465201,0.0002425,2]
[391855574,1760919032187,-686.08815981,0.0002425,2]
[391855597,1760919037951,-656.13908818,0.0002425,2]
[391855598,1760919037960,-160.0,0.00024574,2]
[391855599,1760919037970,-168.0,0.00024598,2]
[391855600,1760919037979,-168.0,0.00024613,2]
[391855601,1760919037988,-826.11389921,0.00024637,2]
[391855602,1760919037997,-168.0,0.00024637,2]
[391855603,1760919038006,-168.0,0.00024673,2]
[391855604,1760919038015,-172.5,0.000247,2]
[391855605,1760919038024,-168.0,0.00024759,2]
[391855606,1760919038033,-1200.0,0.00024764,2]
[391855607,1760919038043,-972.32,0.00024795,2]
[391855609,1760919038052,-300.0,0.00025057,2]
[391855610,1760919038061,-168.0,0.00025058,2]
[391855611,1760919038071,-500.0,0.00025196,2]
[391855612,1760919038080,-442.6741882,0.00025202,2]
[391855613,1760919038092,-491.3258118,0.00025202,2]
[391855614,1760919038101,-661.99406673,0.00025205,2]
[391855615,1760919038112,-195.0,0.000253,2]
[391855616,1760919038121,-168.0,0.00025428,2]
[391855617,1760919038131,-168.0,0.00025445,2]
[391855618,1760919038141,-168.0,0.00025502,2]
[391855619,1760919038151,-168.0,0.00025568,2]
[391855620,1760919038161,-174.97,0.00025733,2]
[391855621,1760919038170,-1166.78,0.00025787,2]
[391855622,1760919038180,-17.89317314,0.00025873,2]
[391855623,1760919038191,-267.82407601,0.00025873,2]
[391855624,1760919038200,-77.17592399,0.00025894,2]
[391855625,1760919038212,-90.82407601,0.00025894,2]
[391855626,1760919038222,-217.5,0.000259,2]
[391855627,1760919038231,-500.0,0.00025967,2]
[391855628,1760919038240,-500.0,0.00025967,2]
[391855629,1760919038250,-500.0,0.00025967,2]
[391855630,1760919038259,-500.0,0.00025967,2]
[391855631,1760919038268,-500.0,0.00025967,2]
[391855632,1760919038277,-406.38117591,0.00025967,2]
[391855633,1760919038287,-500.0,0.00025967,2]
[391855634,1760919038296,-500.0,0.00025967,2]
[391855635,1760919038305,-500.0,0.00025967,2]
[391855636,1760919038316,-500.0,0.00025967,2]
[391855637,1760919038325,-5124.96674808,0.00025968,2]
[391855828,1760919043210,-8447.74037198,0.00025968,2]
[391855829,1760919043222,-497.68100651,0.00025968,2]
[391855830,1760919043246,-959.86703732,0.00025968,2]
[391855854,1760919046301,-7834.5191881,0.00025968,2]
[391855855,1760919046313,-10306.35313181,0.00025968,2]
[391855856,1760919046324,-2318.7292779,0.00025968,2]
[391855857,1760919046335,-251.11580361,0.00025977,2]
[391855858,1760919046347,-152.02443283,0.00025977,2]
[391855859,1760919046357,-66162.29037217,0.00025978,30]
[391855860,1760919046369,-14382.28918743,0.00025978,30]
[391855861,1760919047478,-2579.31973544,0.00025978,30]
[391855863,1760919075479,150.0,0.00020847,2]
[391855864,1760919075930,284.98,0.0002184,2]
[391855865,1760919076153,929.905643,0.00013699,2]
[391855866,1760919076351,427.47,0.00022832,2]
[391855867,1760919076382,929.905643,0.00020187,2]
[391855868,1760919076855,569.95,0.00023825,2]
[391855871,1760919146785,310.98398615,0.00024073,2]
[391855872,1760919146813,106.1707417,0.00024073,2]
[391855873,1760919153891,150.0,0.00020852,2]
[391855874,1760919154274,248.52,0.00021845,2]
[391855875,1760919154709,372.77,0.00022838,2]
[391855876,1760919155295,497.03,0.00023831,2]
[391855891,1760919233625,150.0,0.00020867,2]
[391855892,1760919234085,216.23,0.00021861,2]
[391855893,1760919235021,324.35,0.00022854,2]
[391855894,1760919235509,432.46,0.00023848,2]
[391855895,1760919290760,7502.4792583,0.00024073,2]
[391855896,1760919290785,2497.5207417,0.00024073,2]
[391855897,1760919301869,7502.4892583,0.00024073,2]
[391855898,1760919301897,2497.5107417,0.00024073,2]
[391855899,1760919311912,150.0,0.00020866,2]
[391855900,1760919312350,187.65,0.0002186,2]
[391855901,1760919312786,281.47,0.00022853,2]
[391855902,1760919313202,375.29,0.00023847,2]
[391855903,1760919313851,6508.0892583,0.00024073,2]
[391855904,1760919313875,3491.9107417,0.00024073,2]
[391855905,1760919323022,6508.0992583,0.00024073,2]
[391855906,1760919323050,3491.9007417,0.00024073,2]
[391855907,1760919332058,6508.1092583,0.00024073,2]
[391855908,1760919332087,3491.8907417,0.00024073,2]
[391855909,1760919332444,300.0,0.000238,2]
[391855910,1760919342980,6208.1192583,0.00024073,2]
[391855911,1760919343005,3791.8807417,0.00024073,2]
[391855913,1760919362750,1313.86,0.00024073,2]
[391855914,1760919391111,150.0,0.00020904,2]
[391855915,1760919391642,162.33,0.00021899,2]
[391855916,1760919391983,243.5,0.00022895,2]
[391855917,1760919392430,324.67,0.0002389,2]
[391855918,1760919467950,150.0,0.00020928,2]
[391855919,1760919468470,150.0,0.00021925,2]
[391855920,1760919468901,209.88,0.00022921,2]
[391855921,1760919469336,279.84,0.00023918,2]
[391855922,1760919498743,3224.0492583,0.00024073,2]
[391855923,1760919498774,1775.9507417,0.00024073,2]
[391855924,1760919506997,5000.0,0.00024073,2]
[391855925,1760919544944,150.0,0.00020899,2]
[391855926,1760919545432,150.0,0.00021894,2]
[391855927,1760919545839,179.73,0.0002289,2]
[391855928,1760919546458,239.64,0.00023885,2]
[391855929,1760919548054,-230.37328211,0.0002488,2]
[391855930,1760919551757,-69.17671789,0.0002488,2]
[391855931,1760919551786,-150.47663294,0.00025613,2]
[391855932,1760919554897,-17.52336706,0.00025613,2]
[391855933,1760919554925,-359.45,0.00025875,2]
[391855934,1760919554950,-2.29080901,0.00025914,2]
[391855935,1760919622390,150.0,0.00020903,2]
[391855936,1760919622856,150.0,0.00021899,2]
[391855937,1760919623279,150.0,0.00022894,2]
[391855938,1760919623731,192.37,0.0002389,2]